fUST/lending_fUST_20250612
["ID","MTS","AMOUNT","RATE_DAILY","PERIOD"]
[365509480,1749723039061,-500.0,0.00022189,2]
[365509481,1749723039071,-217.97662497,0.00022279,6]
[365509482,1749723039082,-217.97662497,0.00022417,7]
[365509483,1749723039091,-217.97662497,0.00022555,7]
[365509484,1749723039101,-217.97662497,0.00022693,7]
[365509485,1749723039110,-506.63000627,0.00022763,2]
[365509486,1749723039120,-653.0,0.00022763,2]
[365509487,1749723039130,-217.97662497,0.00022831,8]
[365509488,1749723039139,-600.0,0.00022848,2]
[365509489,1749723039149,-1400.23981339,0.0002285,2]
[365509490,1749723039159,-168.0,0.00022873,2]
[365509491,1749723039168,-3000.0,0.000229,2]
[365509492,1749723039178,-151.0,0.00022905,6]
[365509493,1749723039188,-3000.0,0.0002291,2]
[365509494,1749723039198,-3000.0,0.0002292,2]
[365509495,1749723039208,-3000.0,0.0002293,2]
[365509496,1749723039217,-3000.0,0.0002294,2]
[365509497,1749723039229,-3000.0,0.0002295,2]
[365509498,1749723039240,-3000.0,0.0002296,2]
[365509499,1749723039249,-217.97662497,0.00022969,8]
[365509500,1749723039259,-3000.0,0.0002297,2]
[365509501,1749723039268,-3000.0,0.0002298,2]
[365509502,1749723039278,-3000.0,0.0002299,2]
[365509503,1749723039287,-1392.58,0.00023,2]
[365509504,1749723039297,-3000.0,0.00023,2]
[365509505,1749723039307,-1692.569649,0.00023,2]
[365509506,1749723039316,-277.570386,0.00023,7]
[365509507,1749723039325,-277.570386,0.00023,7]
[365509508,1749723039335,-446.346102,0.00023,7]
[365509509,1749723039344,-446.346102,0.00023,7]
[365509510,1749723039353,-584.38376883,0.00023,8]
[365509511,1749723039363,-15048.10663966,0.00023007,2]
[365509512,1749723039372,-3000.0,0.0002301,2]
[365509513,1749723039382,-460.0,0.00023013,2]
[365509514,1749723039391,-460.0,0.00023013,4]
[365509515,1749723039401,-480.2,0.00023013,4]
[365509516,1749723039411,-460.0,0.00023013,4]
[365509517,1749723039421,-746.87,0.00023013,4]
[365509518,1749723039430,-460.0,0.00023013,4]
[365509519,1749723039439,-460.0,0.00023013,4]
[365509520,1749723039448,-421.65,0.00023013,4]
[365509521,1749723039457,-460.0,0.00023013,4]
[365509522,1749723039466,-460.0,0.00023013,4]
[365509523,1749723039478,-545.54,0.00023013,4]
[365509524,1749723039487,-460.0,0.00023013,4]
[365509525,1749723039496,-460.0,0.00023013,4]
[365509526,1749723039506,-500.8,0.00023013,4]
[365509527,1749723039516,-629.52,0.00023013,4]
[365509528,1749723039529,-621.77,0.00023013,4]
[365509529,1749723039538,-587.29,0.00023013,4]
[365509530,1749723039549,-506.22,0.00023013,4]
[365509531,1749723039559,-3000.0,0.0002302,2]
[365509532,1749723039569,-1022.82194996,0.00023022,2]
[365509533,1749723039578,-3000.0,0.0002303,2]
[365509534,1749723039588,-3000.0,0.0002304,2]
[365509535,1749723039598,-3000.0,0.0002305,2]
[365509536,1749723039616,-3000.0,0.0002306,2]
[365509537,1749723039628,-223.0315306,0.00023069,2]
[365509538,1749723039637,-3000.0,0.0002307,2]
[365509539,1749723039647,-500.0,0.00023073,2]
[365509540,1749723039657,-259.30897065,0.00023073,2]
[365509541,1749723039667,-500.0,0.00023073,2]
[365509542,1749723039677,-501.97486548,0.00023073,2]
[365509543,1749723039687,-500.0,0.00023073,2]
[365509544,1749723039696,-3000.0,0.0002308,2]
[365509545,1749723039706,-151.0,0.00023084,6]
[365509546,1749723039716,-151.0,0.0002309,7]
[365509547,1749723039726,-3000.0,0.0002309,2]
[365509548,1749723039736,-365.863656,0.0002309,7]
[365509549,1749723039745,-365.863656,0.0002309,7]
[365509550,1749723039755,-3000.0,0.000231,2]
[365509551,1749723039764,-160168.16,0.000231,7]
[365509552,1749723039775,-11862.37599647,0.000231,7]
[365509553,1749723039784,-217.97662497,0.00023107,8]
[365509554,1749723039794,-3000.0,0.0002311,2]
[365509555,1749723039803,-3000.0,0.0002312,2]
[365509556,1749723039813,-3000.0,0.0002313,2]
[365509557,1749723039823,-3000.0,0.0002314,2]
[365509558,1749723039832,-3000.0,0.0002315,2]
[365509559,1749723039842,-3000.0,0.0002316,2]
[365509560,1749723039851,-3000.0,0.0002317,2]
[365509561,1749723039861,-3000.0,0.0002318,2]
[365509562,1749723039871,-3000.0,0.0002319,2]
[365509563,1749723039880,-2897.27,0.000232,7]
[365509564,1749723039890,-327.54336641,0.00023211,73]
[365509565,1749723039899,-217.97662497,0.00023245,8]
[365509566,1749723039909,-153.7661172,0.0002326,2]
[365509567,1749723039919,-153.0,0.0002326,2]
[365509568,1749723039928,-153.0,0.0002326,2]
[365509569,1749723039938,-151.0,0.00023263,6]
[365509570,1749723039947,-168.0,0.00023267,2]
[365509571,1749723039957,-520.088735,0.00023286,2]
[365509572,1749723039966,-520.088735,0.00023286,2]
[365509573,1749723039976,-160.0,0.00023286,2]
[365509574,1749723039986,-460.0,0.00023287,2]
[365509575,1749723039995,-369.63,0.00023287,4]
[365509576,1749723040004,-480.2,0.00023287,4]
[365509577,1749723040014,-460.0,0.00023287,4]
[365509578,1749723040025,-746.87,0.00023287,4]
[365509579,1749723040036,-460.0,0.00023287,4]
[365509580,1749723040046,-460.0,0.00023287,4]
[365509581,1749723040055,-460.0,0.00023287,4]
[365509582,1749723040065,-460.0,0.00023287,4]
[365509583,1749723040074,-545.54,0.00023287,4]
[365509585,1749723040084,-460.0,0.00023287,4]
[365509587,1749723040093,-460.0,0.00023287,4]
[365509588,1749723040102,-500.8,0.00023287,4]
[365509589,1749723040112,-629.52,0.00023287,4]
[365509590,1749723040121,-621.77,0.00023287,4]
[365509591,1749723040132,-587.29,0.00023287,4]
[365509592,1749723040143,-506.22,0.00023287,4]
[365509593,1749723040152,-277.570386,0.000233,7]
[365509594,1749723040161,-277.570386,0.000233,7]
[365509595,1749723040171,-446.346102,0.000233,7]
[365509596,1749723040180,-446.346102,0.000233,7]
[365509597,1749723040190,-1338.791153,0.00023312,3]
[365509598,1749723040199,-168.0,0.00023322,2]
[365509599,1749723040209,-217.97662497,0.00023383,9]
[365509600,1749723040218,-719.46,0.000234,7]
[365509601,1749723040229,-340.0,0.0002342,2]
[365509602,1749723040238,-1335.6,0.00023438,2]
[365509603,1749723040247,-151.0,0.00023442,6]
[365509604,1749723040257,-800.0,0.00023453,2]
[365509605,1749723040267,-15048.10663966,0.00023454,2]
[365509606,1749723040276,-2200.0,0.00023462,2]
[365509607,1749723040285,-151.0,0.000235,7]
[365509608,1749723040294,-520.088735,0.000235,2]
[365509609,1749723040303,-520.088735,0.000235,2]
[365509610,1749723040312,-277.570386,0.000235,7]
[365509611,1749723040322,-277.570386,0.000235,7]
[365509612,1749723040331,-365.863656,0.000235,7]
[365509613,1749723040341,-365.863656,0.000235,7]
[365509614,1749723040350,-446.346102,0.000235,7]
[365509615,1749723040359,-446.346102,0.000235,7]
[365509616,1749723040368,-1022.82194996,0.00023515,2]
[365509617,1749723040378,-217.97662497,0.00023521,9]
[365509618,1749723040387,-195.80780877,0.00023521,2]
[365509619,1749723040397,-676.26303172,0.00023553,2]
[365509620,1749723040407,-245.73573494,0.00023553,2]
[365509621,1749723040416,-168.0,0.00023553,2]
[365509622,1749723040426,-245.73573494,0.00023553,2]
[365509623,1749723040436,-245.73573494,0.00023557,2]
[365509624,1749723040445,-460.0,0.00023561,2]
[365509626,1749723040455,-480.2,0.00023561,4]
[365509628,1749723040464,-460.0,0.00023561,4]
[365509630,1749723040475,-746.87,0.00023561,4]
[365509632,1749723040484,-460.0,0.00023561,4]
[365509634,1749723040493,-460.0,0.00023561,4]
[365509636,1749723040503,-460.0,0.00023561,4]
[365509637,1749723040512,-460.0,0.00023561,4]
[365509638,1749723040522,-545.54,0.00023561,4]
[365509640,1749723040536,-460.0,0.00023561,4]
[365509641,1749723040545,-460.0,0.00023561,4]
[365509642,1749723040554,-500.8,0.00023561,4]
[365509643,1749723040563,-629.52,0.00023561,4]
[365509644,1749723040572,-621.77,0.00023561,4]
[365509645,1749723040581,-587.29,0.00023561,4]
[365509646,1749723040590,-506.22,0.00023561,4]
[365509647,1749723040601,-245.73573495,0.00023574,2]
[365509648,1749723040610,-245.73573495,0.00023585,2]
[365509649,1749723040620,-245.73573494,0.00023591,2]
[365509650,1749723040629,-676.26303172,0.00023594,2]
[365509651,1749723040638,-151.0,0.000236,7]
[365509652,1749723040647,-520.088735,0.000236,2]
[365509653,1749723040656,-520.088735,0.000236,2]
[365509654,1749723040665,-277.570386,0.000236,7]
[365509655,1749723040674,-277.570386,0.000236,7]
[365509656,1749723040683,-365.863656,0.000236,7]
[365509657,1749723040692,-365.863656,0.000236,7]
[365509658,1749723040702,-446.346102,0.000236,7]
[365509659,1749723040711,-446.346102,0.000236,7]
[365509660,1749723040720,-62460.72,0.000236,2]
[365509661,1749723040730,-676.26303172,0.00023614,2]
[365509662,1749723040739,-245.73573494,0.00023618,2]
[365509663,1749723040748,-1000.0,0.00023621,2]
[365509664,1749723040757,-1012.66209586,0.00023621,2]
[365509665,1749723040766,-369.88795274,0.00023621,2]
[365509666,1749723040775,-151.0,0.00023621,7]
[365509667,1749723040784,-168.0,0.00023628,2]
[365509668,1749723040793,-245.73573494,0.00023642,2]
[365509669,1749723040803,-676.26303172,0.0002365,2]
[365509670,1749723040812,-217.97662497,0.00023659,9]
[365509671,1749723040821,-245.73573494,0.00023669,2]
[365509672,1749723040830,-245.73573495,0.00023675,2]
[365509673,1749723040840,-245.73573495,0.00023677,2]
[365509674,1749723040849,-1689.123308,0.0002368,5]
[365509675,1749723040858,-245.73573494,0.00023692,2]
[365509676,1749723040868,-151.0,0.000237,7]
[365509677,1749723040877,-1000.0,0.000237,5]
[365509678,1749723040887,-2000.0,0.000237,2]
[365509679,1749723040896,-151.0,0.000237,9]
[365509680,1749723040905,-3478.46501898,0.000237,2]
[365509681,1749723040915,-160.0,0.0002375,5]
[365509682,1749723040924,-167.45408736,0.0002375,5]
[365509683,1749723040933,-501.69546006,0.00023773,2]
[365509684,1749723040943,-500.0,0.00023773,2]
[365509685,1749723040952,-500.0,0.00023773,2]
[365509686,1749723040961,-500.0,0.00023773,2]
[365509688,1749723040971,-500.0,0.00023773,2]
[365509690,1749723040981,-500.0,0.00023773,2]
[365509691,1749723040990,-500.0,0.00023773,2]
[365509692,1749723041000,-500.0,0.00023773,2]
[365509693,1749723041009,-500.0,0.00023773,2]
[365509694,1749723041021,-263.62215976,0.00023773,2]
[365509695,1749723041031,-500.0,0.00023773,2]
[365509696,1749723041040,-501.26995734,0.00023773,2]
[365509697,1749723041049,-500.0,0.00023773,2]
[365509698,1749723041058,-500.0,0.00023773,2]
[365509699,1749723041068,-503.46059178,0.00023773,2]
[365509700,1749723041077,-500.0,0.00023773,2]
[365509701,1749723041087,-501.57892023,0.00023773,2]
[365509702,1749723041096,-501.22190084,0.00023773,2]
[365509703,1749723041106,-500.0,0.00023773,2]
[365509704,1749723041115,-500.0,0.00023773,2]
[365509705,1749723041124,-500.0,0.00023773,2]
[365509706,1749723041133,-500.51322611,0.00023773,2]
[365509707,1749723041142,-600.0,0.00023773,2]
[365509708,1749723041152,-558.15041636,0.00023773,2]
[365509709,1749723041161,-500.0,0.00023773,2]
[365509710,1749723041170,-500.0,0.00023773,2]
[365509711,1749723041180,-645.13087808,0.00023773,2]
[365509712,1749723041189,-6690.76865168,0.00023788,2]
[365509713,1749723041198,-222.217157,0.00023788,7]
[365509714,1749723041208,-350.778332,0.00023788,7]
[365509715,1749723041217,-350.778332,0.00023788,7]
[365509716,1749723041227,-156.750877,0.00023788,7]
[365509717,1749723041237,-156.750877,0.00023788,7]
[365509718,1749723041246,-151.0,0.00023788,7]
[365509719,1749723041255,-285.658887,0.00023788,7]
[365509720,1749723041264,-285.658887,0.00023788,7]
[365509721,1749723041274,-151.0,0.00023788,7]
[365509722,1749723041283,-151.0,0.00023788,7]
[365509723,1749723041291,-151.0,0.00023788,7]
[365509724,1749723041301,-520.088735,0.00023788,2]
[365509725,1749723041312,-520.088735,0.00023788,2]
[365509726,1749723041322,-520.088735,0.00023788,2]
[365509727,1749723041332,-520.088735,0.00023788,2]
[365509728,1749723041343,-236.89754135,0.00023788,2]
[365509729,1749723041352,-277.570386,0.00023788,7]
[365509730,1749723041362,-277.570386,0.00023788,7]
[365509731,1749723041371,-154.96762593,0.00023788,3]
[365509732,1749723041380,-1745.0,0.00023788,3]
[365509733,1749723041389,-1745.0,0.00023788,3]
[365509734,1749723041398,-1745.0,0.00023788,3]
[365509735,1749723041407,-1745.0,0.00023788,3]
[365509736,1749723041417,-1745.0,0.00023788,3]
[365509737,1749723041426,-153.0,0.00023788,3]
[365509738,1749723041435,-1745.0,0.00023788,3]
[365509739,1749723041445,-153.0,0.00023788,3]
[365509740,1749723041454,-438.71693277,0.00023788,3]
[365509741,1749723041463,-153.0,0.00023788,3]
[365509742,1749723041473,-153.98424146,0.00023788,3]
[365509743,1749723041482,-500.0,0.00023788,2]
[365509744,1749723041492,-500.0,0.00023788,2]
[365509745,1749723041501,-500.0,0.00023788,2]
[365509746,1749723041510,-500.0,0.00023788,2]
[365509747,1749723041520,-500.0,0.00023788,2]
[365509748,1749723041534,-500.0,0.00023788,2]
[365509749,1749723041543,-500.0,0.00023788,2]
[365509750,1749723041552,-500.0,0.00023788,2]
[365509751,1749723041561,-266.0,0.00023788,2]
[365509752,1749723041573,-365.863656,0.00023788,7]
[365509753,1749723041586,-365.863656,0.00023788,7]
[365509754,1749723041595,-446.346102,0.00023788,7]
[365509755,1749723041606,-446.346102,0.00023788,7]
[365509756,1749723041615,-217.97662497,0.00023797,9]
[365509757,1749723041625,-200.51413315,0.00023799,2]
[365509758,1749723041634,-97789.55598071,0.000238,7]
[365509759,1749723041643,-151.0,0.000238,7]
[365509760,1749723041652,-279213.87057444,0.000238,3]
[365509761,1749723041753,-2000.0,0.000238,2]
[365509762,1749723041772,-2000.0,0.000238,2]
[365509763,1749723041782,-156742.76468676,0.000238,3]
[365509764,1749723041864,-41268.26335377,0.000238,3]
[365509765,1749723041956,-5000.0,0.000238,3]
[365509801,1749723043770,-4233.97070903,0.000238,3]
[365509839,1749723046678,-315.06374358,0.00021093,2]
[365509840,1749723046687,-112.99274296,0.00021093,2]
[365509853,1749723207418,273.4,0.00024953,120]
[365509857,1749723483501,12668.29042277,0.00024939,120]
[365509858,1749723797894,500.0,0.00024942,120]
[365509859,1749723799643,500.0,0.00024942,120]
[365509860,1749723803690,500.0,0.00024942,120]
[365509861,1749723805077,500.0,0.00024942,120]
[365509862,1749723811313,500.0,0.00024942,120]
[365509863,1749723850964,500.0,0.00024942,120]
[365509864,1749723852178,500.0,0.00024942,120]
[365509865,1749723853370,500.0,0.00024942,120]
[365509866,1749723854526,500.0,0.00024942,120]
[365509867,1749723856235,500.0,0.00024942,120]
[365509868,1749723888556,691.29348,0.00024942,120]
[365509875,1749724121465,627.003507,0.0002,120]
[365509876,1749724122009,1142.635547,0.00024942,120]
[365509944,1749724231974,-300.0,0.00020271,2]
[365509963,1749724232487,-158.62919814,0.000203,2]
[365509964,1749724232497,-207.4,0.00020359,2]
[365509965,1749724232507,-872.00641746,0.00020372,2]
[365510012,1749724237929,-24027.99358254,0.00020372,2]
[365510014,1749724237941,-426.0,0.000204,3]
[365510015,1749724237951,-425.0,0.000204,3]
[365510016,1749724237960,-164.126,0.00020453,2]
[365510017,1749724237970,-188.5668325,0.00020504,2]
[365510018,1749724237979,-318.44,0.0002051,2]
[365510020,1749724237989,-189.16571,0.00020553,2]
[365510022,1749724237998,-203.84510949,0.000209,4]
[365510024,1749724238008,-203.2476799,0.00020902,2]
[365510026,1749724238018,-844.79171733,0.00020926,2]
[365510028,1749724238028,-160.0,0.00020926,2]
[365510030,1749724238037,-158.62919808,0.0002105,2]
[365510032,1749724238046,-835.15920933,0.00021069,2]
[365510034,1749724238056,-229.7508257,0.00021069,2]
[365510036,1749724238066,-160.0,0.00021069,2]
[365510039,1749724238075,-424.26423502,0.00021069,2]
[365510042,1749724238085,-160.0,0.00021071,2]
[365510045,1749724238095,-460.0,0.00021095,2]
[365510046,1749724238105,-460.0,0.00021095,4]
[365510047,1749724238115,-559.62,0.00021095,4]
[365510048,1749724238126,-460.0,0.00021095,4]
[365510049,1749724238136,-460.0,0.00021095,4]
[365510050,1749724238146,-460.0,0.00021095,4]
[365510051,1749724238156,-460.0,0.00021095,4]
[365510052,1749724238166,-460.0,0.00021095,4]
[365510053,1749724238176,-460.0,0.00021095,4]
[365510054,1749724238185,-476.64,0.00021095,4]
[365510055,1749724238196,-466.8,0.00021095,4]
[365510056,1749724238205,-460.0,0.00021095,4]
[365510057,1749724238214,-460.0,0.00021095,4]
[365510058,1749724238223,-460.0,0.00021095,4]
[365510059,1749724238233,-460.0,0.00021095,4]
[365510060,1749724238242,-203.84510948,0.00021167,4]
[365510061,1749724238251,-460.0,0.00021368,4]
[365510062,1749724238261,-460.0,0.00021368,4]
[365510063,1749724238270,-460.0,0.00021368,4]
[365510064,1749724238279,-460.0,0.00021368,4]
[365510065,1749724238288,-460.0,0.00021368,4]
[365510066,1749724238298,-931.49,0.00021368,4]
[365510067,1749724238307,-460.0,0.00021368,4]
[365510068,1749724238317,-460.0,0.00021369,2]
[365510069,1749724238326,-460.0,0.00021369,4]
[365510070,1749724238335,-559.62,0.00021369,4]
[365510071,1749724238345,-460.0,0.00021369,4]
[365510072,1749724238355,-460.0,0.00021369,4]
[365510073,1749724238365,-460.0,0.00021369,4]
[365510074,1749724238374,-460.0,0.00021369,4]
[365510075,1749724238384,-460.0,0.00021369,4]
[365510076,1749724238393,-476.64,0.00021369,4]
[365510077,1749724238403,-466.8,0.00021369,4]
[365510078,1749724238412,-460.0,0.00021369,4]
[365510079,1749724238421,-460.0,0.00021369,4]
[365510080,1749724238431,-203.84510948,0.00021433,5]
[365510081,1749724238439,-636.88,0.00021487,2]
[365510082,1749724238449,-460.0,0.00021641,4]
[365510083,1749724238459,-460.0,0.00021641,4]
[365510084,1749724238468,-460.0,0.00021641,4]
[365510085,1749724238477,-460.0,0.00021642,4]
[365510086,1749724238487,-460.0,0.00021642,4]
[365510087,1749724238496,-460.0,0.00021642,4]
[365510088,1749724238506,-460.0,0.00021642,4]
[365510089,1749724238515,-931.49,0.00021642,4]
[365510090,1749724238525,-460.0,0.00021642,4]
[365510091,1749724238534,-580.0,0.00021642,4]
[365510092,1749724238543,-460.0,0.00021643,2]
[365510093,1749724238554,-460.0,0.00021643,4]
[365510094,1749724238564,-559.62,0.00021643,4]
[365510095,1749724238574,-460.0,0.00021643,4]
[365510096,1749724238585,-460.0,0.00021643,4]
[365510097,1749724238594,-460.0,0.00021643,4]
[365510098,1749724238604,-460.0,0.00021643,4]
[365510099,1749724238613,-460.0,0.00021643,4]
[365510100,1749724238622,-476.64,0.00021643,4]
[365510101,1749724238633,-466.8,0.00021643,4]
[365510102,1749724238643,-203.84510948,0.000217,5]
[365510103,1749724238652,-168.0,0.00021728,2]
[365510104,1749724238779,-215.0738,0.00021728,2]
[365510105,1749724238790,-158.62919808,0.000218,2]
[365510106,1749724238800,-460.0,0.00021915,4]
[365510107,1749724238809,-460.0,0.00021915,4]
[365510108,1749724238818,-460.0,0.00021915,4]
[365510109,1749724238828,-460.0,0.00021916,4]
[365510110,1749724238838,-460.0,0.00021916,4]
[365510111,1749724238847,-460.0,0.00021916,4]
[365510112,1749724238856,-460.0,0.00021916,4]
[365510113,1749724238866,-931.49,0.00021916,4]
[365510114,1749724238876,-369.63,0.00021916,4]
[365510115,1749724238885,-580.0,0.00021916,4]
[365510116,1749724238895,-460.0,0.00021917,2]
[365510117,1749724238904,-460.0,0.00021917,4]
[365510118,1749724238918,-559.62,0.00021917,4]
[365510119,1749724238934,-477.77915223,0.00021917,4]
[365510120,1749724238944,-460.0,0.00021917,4]
[365510121,1749724238953,-460.0,0.00021917,4]
[365510122,1749724238962,-460.0,0.00021917,4]
[365510123,1749724238973,-476.64,0.00021917,4]
[365510124,1749724238983,-466.8,0.00021917,4]
[365510125,1749724238992,-203.84510948,0.00021967,6]
[365510126,1749724239002,-164.0,0.00022,2]
[365510127,1749724239013,-420.0,0.00022067,2]
[365510128,1749724239024,-472.60644344,0.00022188,2]
[365510129,1749724239034,-206.2591755,0.00022188,2]
[365510130,1749724239044,-439.99508111,0.00022188,2]
[365510131,1749724239053,-460.0,0.00022189,4]
[365510132,1749724239063,-421.65,0.00022189,4]
[365510133,1749724239073,-460.0,0.0002219,4]
[365510134,1749724239082,-460.0,0.0002219,4]
[365510135,1749724239092,-460.0,0.0002219,4]
[365510136,1749724239101,-460.0,0.0002219,4]
[365510137,1749724239111,-931.49,0.0002219,4]
[365510138,1749724239120,-580.0,0.0002219,4]
[365510139,1749724239129,-258.86,0.00022191,2]
[365510140,1749724239139,-460.0,0.00022191,4]
[365510141,1749724239148,-559.62,0.00022191,4]
[365510142,1749724239158,-460.0,0.00022191,4]
[365510143,1749724239169,-460.0,0.00022191,4]
[365510144,1749724239178,-460.0,0.00022191,4]
[365510145,1749724239187,-476.64,0.00022191,4]
[365510146,1749724239197,-466.8,0.00022191,4]
[365510147,1749724239206,-203.84510948,0.00022233,6]
[365510148,1749724239215,-168.0,0.00022307,2]
[365510149,1749724239224,-460.0,0.00022463,4]
[365510150,1749724239234,-955.32,0.00022464,2]
[365510151,1749724239243,-460.0,0.00022464,4]
[365510152,1749724239251,-460.0,0.00022464,4]
[365510153,1749724239260,-460.0,0.00022464,4]
[365510154,1749724239269,-460.0,0.00022464,4]
[365510155,1749724239278,-931.49,0.00022464,4]
[365510156,1749724239287,-580.0,0.00022464,4]
[365510157,1749724239296,-460.0,0.00022465,4]
[365510158,1749724239305,-559.62,0.00022465,4]
[365510159,1749724239314,-460.0,0.00022465,4]
[365510160,1749724239323,-460.0,0.00022465,4]
[365510161,1749724239333,-460.0,0.00022465,4]
[365510162,1749724239342,-476.64,0.00022465,4]
[365510163,1749724239351,-466.8,0.00022465,4]
[365510164,1749724239359,-168.0,0.00022479,2]
[365510165,1749724239368,-203.84510948,0.000225,7]
[365510166,1749724239378,-158.62919808,0.0002255,2]
[365510167,1749724239387,-460.0,0.00022737,4]
[365510168,1749724239396,-460.0,0.00022738,4]
[365510169,1749724239405,-460.0,0.00022738,4]
[365510170,1749724239414,-320.37,0.00022738,4]
[365510171,1749724239423,-460.0,0.00022738,4]
[365510172,1749724239433,-931.49,0.00022738,4]
[365510173,1749724239443,-580.0,0.00022738,4]
[365510175,1749724239452,-460.0,0.00022739,4]
[365510176,1749724239460,-559.62,0.00022739,4]
[365510177,1749724239469,-219.54,0.00022739,4]
[365510178,1749724239478,-460.0,0.00022739,4]
[365510179,1749724239487,-460.0,0.00022739,4]
[365510180,1749724239497,-476.64,0.00022739,4]
[365510181,1749724239506,-466.8,0.00022739,4]
[365510182,1749724239515,-405.0,0.00022763,2]
[365510183,1749724239524,-203.84510948,0.00022767,7]
[365510184,1749724239533,-43757.3213423,0.000228,7]
[365510185,1749724239542,-1400.23981339,0.00022842,2]
[365510187,1749724239551,-600.0,0.00022848,2]
[365510189,1749724239560,-509.47082423,0.00022946,2]
[365510190,1749724239569,-500.0,0.00022946,2]
[365510191,1749724239578,-500.0,0.00022946,2]
[365510192,1749724239587,-500.0,0.00022946,2]
[365510193,1749724239596,-500.0,0.00022946,2]
[365510194,1749724239605,-500.0,0.00022946,2]
[365510195,1749724239615,-500.0,0.00022946,2]
[365510196,1749724239623,-500.0,0.00022946,2]
[365510197,1749724239633,-492.37160908,0.00022946,2]
[365510198,1749724239641,-500.0,0.00022946,2]
[365510199,1749724239651,-420131.24907861,0.00022947,2]
[365510200,1749724239661,-273.4,0.00023,2]
[365510201,1749724239670,-3000.05184901,0.00023,14]
[365510202,1749724239679,-219931.88386811,0.00023,20]
[365510203,1749724239688,-1547.31,0.00023,2]
[365510204,1749724239698,-160168.16,0.00023,7]
[365510205,1749724239707,-460.0,0.00023011,4]
[365510206,1749724239716,-460.0,0.00023012,4]
[365510207,1749724239725,-460.0,0.00023012,4]
[365510208,1749724239735,-460.0,0.00023012,4]
[365510209,1749724239744,-931.49,0.00023012,4]
[365510210,1749724239753,-580.0,0.00023012,4]
[365510211,1749724239762,-460.0,0.00023013,4]
[365510212,1749724239771,-559.62,0.00023013,4]
[365510213,1749724239780,-460.0,0.00023013,4]
[365510214,1749724239788,-460.0,0.00023013,4]
[365510215,1749724239797,-476.64,0.00023013,4]
[365510216,1749724239806,-466.8,0.00023013,4]
[365510217,1749724239815,-203.84510948,0.00023033,8]
[365510218,1749724239824,-151.0,0.00023083,6]
[365510219,1749724239836,-601.5794832,0.00023086,2]
[365510220,1749724239845,-223.0315306,0.00023097,2]
[365510221,1749724239854,-3000.0,0.00023188,3]
[365510222,1749724239863,-273.4,0.000232,2]
[365510223,1749724239872,-178.602612,0.00023212,7]
[365510224,1749724239881,-31832.12,0.00023255,10]
[365510225,1749724239890,-151.0,0.00023262,6]
[365510226,1749724239900,-460.0,0.00023285,4]
[365510227,1749724239909,-5000.0,0.00023286,3]
[365510228,1749724239918,-460.0,0.00023286,4]
[365510229,1749724239928,-460.0,0.00023286,4]
[365510230,1749724239939,-460.0,0.00023286,4]
[365510231,1749724239949,-931.49,0.00023286,4]
[365510232,1749724239959,-580.0,0.00023286,4]
[365510233,1749724239967,-460.0,0.00023287,4]